bitfinex/quotes_BTCUSD_20210101
["timestamp","ask_amount","ask_price","bid_price","bid_amount"]
[1609503201549,0.3910406,29281.0,29280.0,3.4283771]
[1609503208584,0.3910406,29281.0,29280.0,4.62956461]
[1609503211425,0.3910406,29281.0,29280.0,4.81731461]
[1609503212771,0.3910406,29281.0,29280.0,4.49771913]
[1609503213266,0.3910406,29281.0,29280.0,4.62212116]
[1609503213482,0.3910406,29281.0,29280.0,4.81727868]
[1609503215186,0.3910406,29281.0,29280.0,4.69287665]
[1609503215682,0.3910406,29281.0,29280.0,4.81727874]
[1609503221023,0.3910406,29281.0,29280.0,4.69287665]
[1609503236636,0.3910406,29281.0,29280.0,4.55563665]
[1609503236937,0.3910406,29281.0,29280.0,4.50512665]
[1609503242940,1.58448178,29281.0,29280.0,3.43498913]
[1609503243147,1.58448178,29281.0,29280.0,3.35498913]
[1609503244051,1.58448178,29281.0,29280.0,2.35498913]
[1609503244250,1.91448178,29281.0,29280.0,2.35498913]
[1609503244453,2.27939478,29281.0,29280.0,2.35498913]
[1609503244856,1.91448178,29281.0,29280.0,3.06520127]
[1609503245051,1.91448178,29281.0,29280.0,2.31038933]
[1609503245449,1.91448178,29281.0,29280.0,2.14819873]
[1609503246453,1.91448178,29281.0,29280.0,2.06520127]
[1609503247275,2.01626143,29281.0,29280.0,2.07694217]
[1609503247480,1.91448178,29281.0,29280.0,2.07694217]
[1609503247979,0.9625406,29281.0,29280.0,2.07694217]
[1609503248175,0.6325406,29281.0,29280.0,2.07694217]
[1609503249487,0.3910406,29281.0,29280.0,2.07694217]
[1609503249890,0.3910406,29281.0,29280.0,2.11840586]
[1609503250085,0.3910406,29281.0,29280.0,2.07694217]
[1609503251183,0.3295406,29281.0,29280.0,4.57694217]
[1609503251582,0.3295406,29281.0,29280.0,2.07694217]
[1609503251790,0.3295406,29281.0,29280.0,2.3433961]
[1609503252687,0.3295406,29281.0,29280.0,2.1183961]
[1609503258479,0.3295406,29281.0,29280.0,1.89502841]
[1609503258680,0.3295406,29281.0,29280.0,1.99502841]
[1609503258882,0.3295406,29281.0,29280.0,2.07502841]
[1609503259082,0.3295406,29281.0,29280.0,2.29502841]
[1609503261079,0.3295406,29281.0,29280.0,1.99502841]
[1609503261284,0.3295406,29281.0,29280.0,2.09737436]
[1609503262187,0.3295406,29281.0,29280.0,1.99502841]
[1609503264406,0.3295406,29281.0,29280.0,2.19018593]
[1609503264803,0.3295406,29281.0,29280.0,1.99502841]
[1609503265005,0.3295406,29281.0,29280.0,2.16203893]
[1609503265202,0.3295406,29281.0,29280.0,2.35719645]
[1609503265605,0.3295406,29281.0,29280.0,2.16203893]
[1609503270327,0.3295406,29281.0,29280.0,2.1205926]
[1609503272342,0.3235406,29281.0,29280.0,2.20358234]
[1609503272543,0.3235406,29281.0,29280.0,2.1205926]
[1609503273148,0.3235406,29281.0,29280.0,2.203618]
[1609503274254,0.3235406,29281.0,29280.0,2.1205926]
[1609503275848,0.3235406,29281.0,29280.0,2.22373773]
[1609503276155,0.3235406,29281.0,29280.0,2.1205926]
[1609503276652,0.3235406,29281.0,29280.0,2.0205926]
[1609503277056,0.3235406,29281.0,29280.0,2.10367063]
[1609503277674,0.3235406,29281.0,29280.0,2.0205926]
[1609503281382,1.27548178,29281.0,29280.0,2.0205926]
[1609503281688,1.83039478,29281.0,29280.0,2.0205926]
[1609503282490,1.83039478,29281.0,29280.0,1.5923695]
[1609503282900,1.83039478,29281.0,29280.0,1.5092926]
[1609503284002,0.5135406,29281.0,29280.0,1.5092926]
[1609503284204,0.3235406,29281.0,29280.0,1.59235403]
[1609503284402,0.6884536,29281.0,29280.0,1.59235403]
[1609503284703,0.6884536,29281.0,29280.0,1.3592926]
[1609503285799,1.64039478,29281.0,29280.0,1.3592926]
[1609503286002,1.88539478,29281.0,29280.0,1.3592926]
[1609503288678,0.9334536,29281.0,29280.0,1.3592926]
[1609503288882,0.6884536,29281.0,29280.0,1.3592926]
[1609503289384,0.7884536,29281.0,29280.0,1.3592926]
[1609503290182,1.74039478,29281.0,29280.0,1.3592926]
[1609503291585,2.00039478,29281.0,29280.0,1.40080805]
[1609503293301,1.99539478,29281.0,29280.0,1.40080805]
[1609503294707,1.99539478,29281.0,29280.0,1.39080805]
[1609503297105,1.0434536,29281.0,29280.0,1.39080805]
[1609503297707,1.99539478,29281.0,29280.0,1.39080805]
[1609503298529,1.0434536,29281.0,29280.0,1.39080805]
[1609503299033,0.9434536,29281.0,29280.0,1.39080805]
[1609503299331,0.6834536,29281.0,29280.0,1.22372841]
[1609503299726,1.63539478,29281.0,29280.0,1.22372841]
[1609503300326,0.6834536,29281.0,29280.0,1.22372841]
[1609503302338,0.6834536,29281.0,29280.0,1.38981434]
[1609503304538,1.63539478,29281.0,29280.0,1.38981434]
[1609503304842,1.99539478,29281.0,29280.0,1.38981434]
[1609503305549,2.71539478,29281.0,29280.0,1.22372841]
[1609503305742,2.7488629,29281.0,29280.0,1.22372841]
[1609503305953,7.2488629,29281.0,29280.0,1.22372841]
[1609503306453,7.2488629,29281.0,29280.0,0.0117409]
[1609503306745,4.37,29276.0,29275.0,0.0117409]
[1609503306948,4.37,29276.0,29274.0,0.0532489]
[1609503306949,6.19581418,29276.0,29274.0,0.0532489]
[1609503307143,5.46487412,29275.0,29274.0,0.0532489]
[1609503307365,3.01487412,29275.0,29274.0,0.0532489]
[1609503307773,3.01487412,29275.0,29274.0,0.0117409]
[1609503307774,2.6830711,29275.0,29274.0,0.0117409]
[1609503307968,1.6830711,29275.0,29272.0,0.0117409]
[1609503308277,1.28180302,29272.0,29271.0,0.0075259]
[1609503308481,0.364913,29272.0,29270.0,0.1316]
[1609503308670,0.364913,29271.0,29270.0,0.1316]
[1609503309470,0.364913,29271.0,29270.0,0.13912544]
[1609503311671,1.31685418,29271.0,29270.0,0.13912544]
[1609503311872,1.55685418,29271.0,29270.0,0.13912544]
[1609503312474,1.53901169,29271.0,29270.0,0.13412544]
[1609503312676,0.58707051,29271.0,29270.0,0.13412544]
[1609503312875,0.34707051,29271.0,29270.0,0.13412544]
[1609503313087,1.29901169,29271.0,29270.0,0.13412544]
[1609503313486,0.34707051,29271.0,29270.0,0.13412544]
[1609503314588,0.34707051,29271.0,29270.0,0.00752544]
[1609503314782,0.34707051,29271.0,29267.0,0.00752544]
[1609503314989,0.34707051,29271.0,29266.0,0.68072544]
[1609503315186,0.34707051,29271.0,29266.0,0.00752544]
[1609503315386,0.34707051,29271.0,29266.0,0.1]
[1609503315589,0.34707051,29271.0,29266.0,0.00752544]
[1609503315790,0.34707051,29271.0,29265.0,1.73171998]
[1609503317091,0.34707051,29271.0,29266.0,0.1]
[1609503317379,0.34707051,29271.0,29266.0,0.10752544]
[1609503318275,0.34707051,29271.0,29266.0,0.10252544]
[1609503320589,0.32953713,29271.0,29266.0,0.10252544]
[1609503320987,0.32953713,29271.0,29266.0,0.09962954]
[1609503325325,0.31768609,29271.0,29266.0,0.07462954]
[1609503326233,0.31768609,29271.0,29266.0,0.00752544]
[1609503326427,1.26962727,29271.0,29266.0,0.00752544]
[1609503326631,0.29,29270.0,29265.0,1.73171998]
[1609503326831,0.364913,29269.0,29265.0,1.73171998]
[1609503328340,0.155,29268.0,29265.0,1.73171998]
[1609503328545,0.3649,29267.0,29265.0,1.73171998]
[1609503328940,0.3649,29267.0,29265.0,1.70730598]
[1609503329144,0.155,29268.0,29265.0,1.70730598]
[1609503329442,0.3649,29267.0,29265.0,1.70730598]
[1609503329641,0.24489,29270.0,29265.0,1.70730598]
[1609503329642,0.3649,29269.0,29265.0,1.70730598]
[1609503330061,0.3649,29269.0,29265.0,1.74864583]
[1609503330846,0.3649,29269.0,29266.0,0.0671041]
[1609503331050,0.3649,29269.0,29267.0,1.18813095]
[1609503331253,0.3649,29269.0,29267.0,1.19565639]
[1609503332597,0.3649,29269.0,29267.0,1.23702648]
[1609503333404,0.3649,29269.0,29268.0,1.35772184]
[1609503333594,0.3649,29269.0,29268.0,1.36524728]
[1609503334322,0.3649,29269.0,29268.0,1.32386171]
[1609503335020,0.3649,29269.0,29268.0,1.36526779]
[1609503335216,0.5399,29269.0,29268.0,1.36526779]
[1609503335426,0.5399,29269.0,29268.0,1.32386171]
[1609503336326,1.49184118,29269.0,29268.0,1.32386171]
[1609503336720,0.5399,29269.0,29268.0,1.32386171]
[1609503337122,0.5399,29269.0,29268.0,1.31324511]
[1609503338453,0.3649,29269.0,29268.0,1.31324511]
[1609503338649,0.3649,29269.0,29268.0,1.38034921]
[1609503338846,0.3649,29269.0,29268.0,1.31324511]
[1609503341351,0.3649,29269.0,29268.0,1.39614712]
[1609503341853,1.56676118,29269.0,29268.0,1.31324511]
[1609503342051,1.70176118,29269.0,29268.0,1.31324511]
[1609503342752,1.80176118,29269.0,29268.0,1.31324511]
[1609503343684,1.80176118,29269.0,29268.0,1.1849902]
[1609503343685,2.32176118,29269.0,29268.0,1.1849902]
[1609503344384,1.80176118,29269.0,29268.0,1.1849902]
[1609503344682,0.84982,29269.0,29268.0,1.1849902]
[1609503347585,0.6999,29269.0,29268.0,1.1849902]
[1609503349783,1.65184118,29269.0,29268.0,1.1849902]
[1609503352089,0.6999,29269.0,29268.0,1.1849902]
[1609503352282,1.65184118,29269.0,29268.0,1.1849902]
[1609503352907,0.6999,29269.0,29268.0,1.1849902]
[1609503357615,0.5999,29269.0,29268.0,1.1849902]
[1609503357819,0.84179739,29269.0,29268.0,1.1849902]
[1609503359240,0.74179739,29269.0,29268.0,1.1849902]
[1609503359636,0.84179739,29269.0,29268.0,1.1849902]
[1609503360042,0.74179739,29269.0,29268.0,1.1849902]
[1609503360744,1.79373857,29269.0,29268.0,1.1849902]
[1609503361350,2.34720669,29269.0,29268.0,1.1849902]
[1609503361540,2.54720669,29269.0,29268.0,1.1849902]
[1609503361945,2.31016526,29269.0,29268.0,1.1849902]
[1609503362139,2.24671877,29269.0,29268.0,1.1849902]
[1609503362588,2.21325065,29269.0,29268.0,1.1849902]
[1609503362979,2.21325062,29269.0,29268.0,1.1849902]
[1609503363885,1.69325062,29269.0,29268.0,1.1849902]
[1609503364589,2.21325062,29269.0,29268.0,1.1849902]
[1609503365286,1.69325062,29269.0,29268.0,1.1849902]
[1609503366488,2.21325062,29269.0,29268.0,1.1849902]
[1609503367722,1.69325062,29269.0,29268.0,1.1849902]
[1609503368223,1.89325062,29269.0,29268.0,1.1849902]
[1609503368820,0.74130944,29269.0,29268.0,1.1849902]
[1609503369023,0.94130944,29269.0,29268.0,1.1849902]
[1609503369529,0.79941208,29269.0,29268.0,1.1849902]
[1609503369724,0.59941208,29269.0,29268.0,1.1849902]
[1609503370021,0.59941208,29269.0,29268.0,0.00752544]
[1609503370223,1.11941208,29269.0,29262.0,0.00752544]
[1609503370424,0.3649,29265.0,29261.0,0.13912544]
[1609503370628,0.364904,29262.0,29261.0,0.13912544]
[1609503372127,0.364904,29262.0,29261.0,0.20622954]
[1609503374457,0.464904,29262.0,29261.0,0.13912544]
[1609503374756,0.609904,29262.0,29261.0,0.13912544]
[1609503379017,2.009904,29262.0,29261.0,0.13912544]
[1609503379229,2.239904,29262.0,29261.0,0.13912544]
[1609503379418,0.839904,29262.0,29261.0,0.13912544]
[1609503381228,0.739904,29262.0,29261.0,0.13912544]
[1609503381426,0.509904,29262.0,29261.0,0.13912544]
[1609503382125,0.509904,29262.0,29261.0,0.20622954]
[1609503382326,0.364904,29262.0,29261.0,0.13912544]
[1609503382749,0.464904,29262.0,29261.0,0.13912544]
[1609503382955,0.364904,29262.0,29261.0,0.13912544]
[1609503383154,0.364904,29262.0,29261.0,0.20622954]
[1609503383563,0.364904,29262.0,29261.0,0.40138706]
[1609503383754,0.364904,29262.0,29261.0,0.53638706]
[1609503384058,0.14392936,29267.0,29261.0,2.38638706]
[1609503384259,0.364904,29266.0,29261.0,2.38638706]
[1609503384449,0.364904,29266.0,29261.0,0.53638706]
[1609503385257,0.364904,29266.0,29265.0,1.2171041]
[1609503385453,0.364904,29266.0,29265.0,0.07462954]
[1609503385651,0.364904,29266.0,29265.0,0.21462954]
[1609503386350,0.364904,29266.0,29265.0,0.07462954]
[1609503389376,0.364904,29266.0,29265.0,0.26978706]
[1609503389575,0.00203441,29267.0,29265.0,0.78567006]
[1609503389785,0.00203589,29269.0,29266.0,5.66135678]
[1609503389974,0.00203589,29269.0,29268.0,5.44765]
[1609503390288,0.00611209,29272.0,29268.0,6.22893706]
[1609503390474,0.00611209,29272.0,29271.0,5.397628]
[1609503390688,0.00203831,29273.0,29272.0,3.75988162]
[1609503390885,0.00203898,29276.0,29272.0,3.98093706]
[1609503391074,0.00203898,29276.0,29273.0,0.66]
[1609503391276,0.00203898,29276.0,29274.0,0.659104]
[1609503391483,0.00407795,29277.0,29275.0,1.7171041]
[1609503391484,0.00611705,29277.0,29275.0,1.7171041]
[1609503391675,0.00611705,29277.0,29276.0,1.29759]
[1609503391883,0.00204031,29278.0,29276.0,0.35027296]
[1609503392673,0.028376,29279.0,29276.0,0.20268296]
[1609503393967,0.364904,29278.0,29276.0,0.00752544]
[1609503394168,0.364904,29278.0,29275.0,0.07462954]
[1609503395068,0.364904,29278.0,29275.0,0.00752544]
[1609503395272,0.364904,29278.0,29274.0,0.51902544]
[1609503396167,0.364904,29278.0,29274.0,0.58612954]
[1609503398693,0.17027336,29279.0,29274.0,0.78128706]
[1609503398891,0.17027336,29279.0,29274.0,0.96986706]
[1609503399091,0.028376,29279.0,29274.0,0.96986706]
[1609503399514,0.364904,29278.0,29274.0,0.96986706]
[1609503400004,0.028376,29279.0,29274.0,0.96986706]
[1609503400399,0.364904,29278.0,29274.0,0.96986706]
[1609503400598,0.364904,29278.0,29274.0,0.58612954]
[1609503401902,0.364904,29277.0,29274.0,0.58612954]
[1609503402102,0.028376,29279.0,29274.0,0.58612954]
[1609503402404,0.364904,29278.0,29274.0,0.78128706]
[1609503402603,0.028376,29279.0,29274.0,0.78128706]
[1609503403001,0.364904,29278.0,29274.0,0.78128706]
[1609503403218,0.364904,29278.0,29274.0,0.58612954]
[1609503404918,0.364904,29278.0,29274.0,0.53262834]
[1609503406024,0.364904,29278.0,29274.0,0.46552424]
[1609503406723,0.364904,29278.0,29274.0,0.53262834]
[1609503408290,0.364904,29278.0,29274.0,0.46552424]
[1609503410411,0.364904,29278.0,29275.0,0.0671041]
[1609503410605,0.364904,29278.0,29275.0,0.07462954]
[1609503414230,0.364904,29278.0,29275.0,0.00752544]
[1609503414431,0.364904,29278.0,29274.0,0.46552424]
[1609503414628,0.364904,29278.0,29274.0,0.53262834]
[1609503416240,0.364904,29278.0,29274.0,0.46552424]
[1609503418253,0.364904,29278.0,29274.0,0.53262834]
[1609503418859,0.364904,29278.0,29274.0,0.46552424]
[1609503419256,0.364904,29278.0,29274.0,0.53262834]
[1609503419462,0.364904,29278.0,29274.0,0.46552424]
[1609503422029,0.03449408,29279.0,29274.0,0.66068176]
[1609503422617,0.03041643,29279.0,29274.0,0.66068176]
[1609503423937,0.364904,29278.0,29275.0,0.21]
[1609503424139,0.03041643,29279.0,29276.0,0.34226162]
[1609503424444,0.028376,29279.0,29278.0,5.447577]
[1609503424641,0.028376,29279.0,29278.0,6.107577]
[1609503424841,0.3185406,29281.0,29280.0,5.447561]
[1609503425038,0.0008,29282.0,29281.0,5.3]
[1609503425435,0.0008,29282.0,29281.0,5.45507844]
[1609503425644,0.0008,29282.0,29281.0,6.11507844]
[1609503425841,0.0006,29283.0,29282.0,5.447546]
[1609503426043,0.001,29285.0,29283.0,6.4]
[1609503426245,0.001,29285.0,29284.0,5.64615596]
[1609503426439,0.001,29285.0,29284.0,6.45368696]
[1609503426746,0.001,29285.0,29284.0,6.4612124]
[1609503426941,0.001,29285.0,29284.0,6.5412124]
[1609503428762,0.0008,29290.0,29285.0,5.3]
[1609503428964,0.0008,29290.0,29286.0,6.30615596]
[1609503429262,0.0008,29290.0,29286.0,6.7326815]
[1609503429460,0.0008,29290.0,29287.0,5.3]
[1609503429662,0.0008,29290.0,29287.0,5.45503444]
[1609503429865,0.0008,29290.0,29287.0,6.11503444]
[1609503430458,0.0008,29290.0,29287.0,6.39453444]
[1609503430655,0.0008,29290.0,29287.0,6.47453444]
[1609503431555,0.0008,29290.0,29287.0,7.47453444]
[1609503432958,0.0008,29290.0,29287.0,2.17453444]
[1609503434386,0.0008,29290.0,29287.0,3.27453444]
[1609503434589,0.0008,29290.0,29287.0,1.76540963]
[1609503434785,0.0008,29290.0,29287.0,1.7762268]
[1609503436589,0.0008,29290.0,29287.0,3.4762268]
[1609503436787,0.0008,29290.0,29287.0,4.1324268]
[1609503437388,0.0008,29290.0,29287.0,7.7324268]
[1609503437665,0.0008,29290.0,29287.0,7.9254068]
[1609503438348,0.0008,29290.0,29287.0,4.3254068]
[1609503439583,0.0008,29290.0,29287.0,2.6254068]
[1609503439783,0.0008,29290.0,29287.0,2.4324268]
[1609503441182,0.0008,29290.0,29287.0,3.2215268]
[1609503441381,0.0008,29290.0,29287.0,4.2215268]
[1609503442582,0.0008,29290.0,29287.0,3.2215268]
[1609503443505,0.0008,29290.0,29287.0,4.4715268]
[1609503444305,0.0008,29290.0,29287.0,3.2215268]
[1609503445308,0.0008,29290.0,29287.0,2.9420268]
[1609503446307,0.0008,29290.0,29287.0,5.2920268]
[1609503446709,0.0008,29290.0,29287.0,5.5273773]
[1609503447409,0.0008,29290.0,29287.0,6.8273773]
[1609503447814,0.0008,29290.0,29287.0,5.5273773]
[1609503448935,0.0008,29290.0,29287.0,3.1773773]
[1609503449337,0.0008,29290.0,29287.0,4.2273773]
[1609503450939,0.52301039,29288.0,29287.0,4.2273773]
[1609503451145,0.52301039,29288.0,29287.0,3.5711773]
[1609503453183,0.52301039,29288.0,29287.0,4.6211773]
[1609503453389,0.52301039,29288.0,29287.0,4.8237873]
[1609503454191,0.52301039,29288.0,29287.0,3.7737873]
[1609503454395,0.52301039,29288.0,29287.0,2.7237873]
[1609503455000,0.52301039,29288.0,29287.0,2.5211773]
[1609503455399,0.52301039,29288.0,29287.0,2.60772811]
[1609503456797,0.52301039,29288.0,29287.0,2.55985761]
[1609503457201,0.52301039,29288.0,29287.0,6.90985761]
[1609503457406,0.01201039,29288.0,29287.0,8.95985761]
[1609503457609,0.0006,29292.0,29289.0,0.55]
[1609503457826,0.0006,29292.0,29291.0,6.25]
[1609503458020,0.0006,29292.0,29291.0,6.66]
[1609503458229,0.14269736,29309.0,29291.0,6.74]
[1609503458437,0.00237085,29300.0,29292.0,5.65396622]
[1609503458634,0.00697583,29301.0,29294.0,0.19515752]
[1609503458635,0.0008,29301.0,29294.0,0.19515752]
[1609503458829,0.0008,29301.0,29295.0,1.0]
[1609503459028,0.0008,29301.0,29297.0,0.5109]
[1609503459531,0.0008,29301.0,29298.0,0.08]
[1609503459734,0.0008,29301.0,29299.0,0.0671041]
[1609503459931,0.0008,29301.0,29300.0,6.48384]
[1609503460129,0.0008,29301.0,29300.0,6.89384]
[1609503460343,0.0008,29301.0,29300.0,1.59384]
[1609503460631,0.0008,29301.0,29300.0,1.68465241]
[1609503461041,0.0008,29301.0,29300.0,0.68465241]
[1609503461238,0.0008,29301.0,29300.0,0.09081241]
[1609503463552,0.0008,29301.0,29296.0,1.17813749]
[1609503463749,0.001,29301.0,29297.0,0.25]
[1609503466753,0.001,29301.0,29297.0,0.6059098]
[1609503467737,0.001,29301.0,29297.0,0.25]
[1609503472062,0.001,29301.0,29299.0,0.6812]
[1609503472261,0.001,29301.0,29300.0,0.155]
[1609503472460,0.0008,29301.0,29300.0,0.155]
[1609503473685,0.0008,29301.0,29299.0,0.6812]
[1609503473884,0.001,29301.0,29299.0,0.6812]
[1609503476191,0.0008,29302.0,29299.0,0.6812]
[1609503476407,0.95194118,29305.0,29300.0,1.0]
[1609503476656,0.95194118,29305.0,29301.0,0.25]
[1609503476854,0.95194118,29306.0,29299.0,0.6812]
[1609503478851,0.364873,29305.0,29299.0,0.6812]
[1609503479054,1.14694118,29304.0,29299.0,0.6812]
[1609503479348,0.93694118,29304.0,29299.0,0.6812]
[1609503479754,0.1002,29307.0,29299.0,0.6812]
[1609503480276,0.1004,29307.0,29299.0,0.6812]
[1609503480784,0.364873,29305.0,29299.0,0.6812]
[1609503481089,0.364873,29303.0,29297.0,0.4897]
[1609503481286,0.364873,29301.0,29297.0,0.4897]
[1609503481478,0.265,29300.0,29297.0,0.4897]
[1609503481980,0.2652,29300.0,29297.0,0.4897]
[1609503482201,0.0002,29300.0,29297.0,0.4897]
[1609503482579,0.1002,29303.0,29297.0,0.4897]
[1609503482888,1.30181418,29302.0,29297.0,0.4897]
[1609503483082,0.135,29301.0,29299.0,0.511]
[1609503483384,0.364873,29300.0,29299.0,0.511]
[1609503483781,0.1352,29301.0,29299.0,0.511]
[1609503483978,0.0002,29301.0,29299.0,0.511]
[1609503484190,0.364873,29304.0,29299.0,0.511]
[1609503484384,1.03694118,29303.0,29299.0,0.511]
[1609503484690,0.21,29302.0,29299.0,0.511]
[1609503484991,0.2102,29302.0,29299.0,0.511]
[1609503485187,0.0002,29302.0,29299.0,0.511]
[1609503485388,0.0002,29303.0,29299.0,0.511]
[1609503486086,0.00989704,29306.0,29299.0,0.511]
[1609503486290,1.30181418,29305.0,29299.0,0.511]
[1609503486484,0.225,29304.0,29299.0,0.511]
[1609503486692,0.364873,29303.0,29299.0,0.511]
[1609503487188,0.365073,29303.0,29299.0,0.511]
[1609503488707,0.0002,29303.0,29299.0,0.511]
[1609503488913,0.23139936,29304.0,29299.0,0.511]
[1609503489119,0.00639936,29304.0,29299.0,0.57405882]
[1609503489322,0.00639936,29304.0,29300.0,0.06305882]
[1609503489921,0.0002,29304.0,29300.0,0.06305882]
[1609503490112,0.0002,29305.0,29300.0,0.06305882]
[1609503490520,0.0002,29305.0,29302.0,0.6812]
[1609503490822,0.0037,29306.0,29303.0,0.2]
[1609503492410,0.0037,29306.0,29302.0,0.73998065]
[1609503492712,0.0037,29306.0,29304.0,0.21]
[1609503499840,0.0037,29306.0,29305.0,1.01815912]
[1609503500039,0.0035,29306.0,29305.0,3.67728912]
[1609503500236,0.0035,29306.0,29305.0,3.79920912]
[1609503500641,0.0006,29310.0,29305.0,1.54920912]
[1609503500855,0.18279364,29313.0,29306.0,3.26811669]
[1609503501107,0.18279364,29313.0,29307.0,1.22807425]
[1609503501609,0.04089796,29313.0,29307.0,1.22807425]
[1609503501811,0.49089796,29313.0,29308.0,0.21]
[1609503502207,0.49089796,29313.0,29307.0,0.45483995]
[1609503502812,0.45,29313.0,29307.0,0.45483995]
[1609503503815,0.0006,29314.0,29307.0,0.45483995]
[1609503504009,0.0006,29314.0,29307.0,0.51789877]
[1609503504219,0.0008,29314.0,29308.0,0.06305882]
[1609503504928,0.00021453,29313.0,29308.0,0.06305882]
[1609503505133,0.00041453,29313.0,29308.0,0.06305882]
[1609503505427,0.00041453,29313.0,29308.0,0.51505882]
[1609503505628,0.00041453,29313.0,29309.0,0.7912]
[1609503505929,0.00041453,29313.0,29309.0,1.71233255]
[1609503506130,0.00041453,29313.0,29310.0,0.5108]
[1609503509232,0.33646042,29312.0,29310.0,0.5108]
[1609503509431,0.33666042,29312.0,29310.0,0.5108]
[1609503511256,0.33666042,29312.0,29311.0,0.21]
[1609503511452,0.33646042,29312.0,29311.0,0.21]
[1609503515061,0.33646042,29312.0,29310.0,0.5108]
[1609503515263,0.33666042,29312.0,29310.0,0.5108]
[1609503518789,0.33666042,29312.0,29311.0,3.15007859]
[1609503518984,0.33646042,29312.0,29311.0,3.15007859]
[1609503519190,0.33646042,29312.0,29311.0,3.36007859]
[1609503519382,0.33646042,29312.0,29311.0,0.81007859]
[1609503519583,0.23646042,29312.0,29311.0,2.71007859]
[1609503519993,0.23646042,29312.0,29311.0,0.81007859]
[1609503520286,0.23646042,29312.0,29311.0,0.45195]
[1609503520484,0.23646042,29312.0,29311.0,0.80840308]
[1609503521986,0.23146042,29312.0,29311.0,2.65840308]
[1609503522191,0.23146042,29312.0,29311.0,0.80840308]
[1609503522887,0.23146042,29312.0,29311.0,0.45195]
[1609503524324,0.22696042,29312.0,29311.0,2.80195]
[1609503524524,0.23696042,29312.0,29311.0,2.80195]
[1609503524723,0.23696042,29312.0,29311.0,0.45195]
[1609503525524,0.23696042,29312.0,29311.0,1.20195]
[1609503525727,0.23696042,29312.0,29311.0,0.45195]
[1609503526529,0.23696042,29312.0,29311.0,4.10195]
[1609503526930,0.23696042,29312.0,29311.0,4.16500882]
[1609503527976,0.23696042,29312.0,29311.0,4.10195]
[1609503528175,0.23696042,29312.0,29311.0,0.45195]
[1609503528372,0.23696042,29312.0,29311.0,2.10195]
[1609503529291,0.23696042,29312.0,29311.0,3.20195]
[1609503529493,0.23696042,29312.0,29311.0,2.10195]
[1609503530396,0.23696042,29312.0,29311.0,3.05195]
[1609503530594,0.23696042,29312.0,29311.0,2.10195]
[1609503531395,0.23696042,29312.0,29311.0,0.45195]
[1609503533314,0.23696042,29312.0,29311.0,2.20195]
[1609503533515,0.23696042,29312.0,29311.0,0.45195]
[1609503534318,0.23696042,29312.0,29311.0,2.80195]
[1609503534517,0.23696042,29312.0,29311.0,0.45195]
[1609503535131,0.23696042,29312.0,29311.0,0.21]
[1609503535323,0.23696042,29312.0,29310.0,0.5108]
[1609503535527,0.33716042,29312.0,29310.0,0.5108]
[1609503537722,0.23716042,29312.0,29310.0,0.5108]
[1609503539050,0.33716042,29312.0,29310.0,0.5108]
[1609503541152,0.23716042,29312.0,29310.0,0.5108]
[1609503541352,0.00021453,29313.0,29312.0,0.07783958]
[1609503541552,0.00021453,29313.0,29312.0,0.04783958]
[1609503544245,0.00021453,29313.0,29312.0,0.99783958]
[1609503544743,0.00021453,29313.0,29312.0,0.04783958]
[1609503545349,0.00021453,29313.0,29312.0,0.29477958]
[1609503545541,0.00021453,29313.0,29312.0,0.42977958]
[1609503545952,0.14269506,29321.0,29313.0,1.7]
[1609503546753,0.0008,29320.0,29313.0,1.7]
[1609503547970,0.0008,29320.0,29312.0,1.10119958]
[1609503547971,0.93774118,29319.0,29312.0,1.10119958]
[1609503548170,0.93774118,29319.0,29313.0,0.185]
[1609503548370,0.93774118,29319.0,29312.0,0.96619958]
[1609503548870,0.0008,29319.0,29312.0,0.96619958]
[1609503549071,0.0008,29319.0,29313.0,0.21]
[1609503549376,0.93794118,29319.0,29313.0,0.21]
[1609503549570,0.001,29319.0,29313.0,0.21]
[1609503549773,0.001,29319.0,29313.0,0.205]
[1609503550176,0.001,29319.0,29313.0,0.56870438]
[1609503550377,0.001,29319.0,29314.0,0.4267632]
[1609503550576,0.001,29319.0,29314.0,0.98403784]
[1609503550773,0.001,29319.0,29315.0,0.26805882]
[1609503550979,0.001,29319.0,29316.0,0.06305882]
[1609503551173,0.001,29319.0,29316.0,0.98399947]
[1609503551382,0.001,29319.0,29316.0,0.92094065]
[1609503551572,0.001,29319.0,29317.0,0.165]
[1609503552581,0.001,29319.0,29316.0,0.92094065]
[1609503552780,0.04,29318.0,29316.0,0.92094065]
[1609503552976,0.0402,29318.0,29316.0,0.92094065]
[1609503553379,0.0402,29318.0,29317.0,2.055]
[1609503553587,0.04,29318.0,29317.0,2.055]
[1609503554090,0.04,29318.0,29317.0,3.055]
[1609503554592,0.04,29318.0,29317.0,2.055]
[1609503555589,0.04,29318.0,29317.0,0.205]
[1609503559289,0.04020301,29318.0,29317.0,0.205]
[1609503559691,0.90415054,29318.0,29317.0,0.205]
[1609503560097,0.90415054,29318.0,29316.0,0.92094065]
[1609503560294,0.90435054,29318.0,29316.0,0.92094065]
[1609503565416,0.90435054,29318.0,29316.0,1.07238065]
[1609503565625,0.90435054,29318.0,29317.0,3.655]
[1609503565919,0.90415054,29318.0,29317.0,3.655]
[1609503566318,0.90415054,29318.0,29317.0,0.205]
[1609503566924,0.89915054,29318.0,29317.0,5.055]
[1609503567121,0.89915054,29318.0,29317.0,3.955]
[1609503567524,0.89915054,29318.0,29317.0,0.205]
[1609503568842,0.89915054,29318.0,29317.0,0.855]
[1609503569046,0.89915054,29318.0,29317.0,0.205]
[1609503569343,0.89915054,29318.0,29316.0,0.92094065]
[1609503569546,0.89935054,29318.0,29316.0,0.92094065]
[1609503570347,0.75435054,29318.0,29316.0,0.92094065]
[1609503571849,0.75435054,29318.0,29317.0,2.955]
[1609503572046,0.75415054,29318.0,29317.0,3.1659]
[1609503572645,0.75415054,29318.0,29317.0,0.4159]
[1609503572846,0.75415054,29318.0,29317.0,2.9659]
[1609503573111,0.75415054,29318.0,29317.0,0.205]
[1609503573315,0.75415054,29318.0,29316.0,0.92094065]
[1609503573512,0.75435054,29318.0,29316.0,0.92094065]
[1609503574326,0.75435054,29318.0,29316.0,0.98399947]
[1609503574728,0.75435054,29318.0,29316.0,0.92094065]
[1609503575028,0.75435054,29318.0,29317.0,4.9883211]
[1609503575226,0.75415054,29318.0,29317.0,4.9883211]